2CCN - Level 2 Cost Centre Name,,9CCN - Level 9 Cost Centre Name,9CCC - Level 9 Cost Centre Code,9AN - Level 9 Account Name,9AC - Level 9 Account Code,Date posted,Date of transaction,Merchant Name,Merchant City,Merchant State,Merchant Zip Code,Originating Account Name,Originating Account Number,MCC/SIC Code,MCC Description,Original Amount,Currency,Conversion Rate,Billed Amount,Debit Credit,Reference Number,Statement Cycle,Account Name
Gloucester City Council,23UE,Museum of Gloucester Catering,MU004,Hospitality & Refreshments,3104,04/03/2020,03/03/2020,ASDA SUPERSTORE,GLOUCESTER,GBR,GL1 1DS,REDACTED,556*********9934,5411,"GROCERY STORES, SUPERMARKETS",18.44,Pound Sterling (826),1.000000000,18.44,Debit,35377750064040278960430,02/04/2020,GLOUCESTER CITY COUNCIL
Gloucester City Council,23UE,Museum of Gloucester Catering,MU004,Hospitality & Refreshments,3104,05/03/2020,04/03/2020,B&M RETAIL LTD,HS GLOUCESTER,,GL12DH,REDACTED,556*********9934,5310,DISCOUNT STORES,15.76,Pound Sterling (826),1.000000000,15.76,Debit,85481470065217304518596,02/04/2020,GLOUCESTER CITY COUNCIL
Gloucester City Council,23UE,Museum of Gloucester,MU002,Exhibition Costs,3021,06/03/2020,05/03/2020,WH SMITH,GLOUCESTER,GBR,GL1 1NZ,REDACTED,556*********9934,5994,NEWS DEALERS AND NEWSSTANDS,5.97,Pound Sterling (826),1.000000000,5.97,Debit,35377750066060384443889,02/04/2020,GLOUCESTER CITY COUNCIL
Gloucester City Council,23UE,Museum of Gloucester,MU002,General Supplies/Materials,3025,06/03/2020,05/03/2020,THE WORKS,GLOUCESTER,,GL1 2NG,REDACTED,556*********9934,5310,DISCOUNT STORES,10,Pound Sterling (826),1.000000000,10,Debit,85481470066217493390160,02/04/2020,GLOUCESTER CITY COUNCIL
Gloucester City Council,23UE,Gloucester Life Museum,MU005,General Supplies/Materials,3025,10/03/2020,09/03/2020,AMZNMktplace,amazon.co.uk,GBR,EC2A 2FA,REDACTED,556*********9934,5999,MISCELLANEOUS AND RETAIL STORES,194.98,Pound Sterling (826),1.000000000,194.98,Debit,52692010069200592766437,02/04/2020,GLOUCESTER CITY COUNCIL
Gloucester City Council,23UE,Museum of Gloucester,MU002,General Supplies/Materials,3025,11/03/2020,10/03/2020,AMZNMktplace,amazon.co.uk,GBR,EC2A 2FA,REDACTED,556*********9934,5999,MISCELLANEOUS AND RETAIL STORES,29.98,Pound Sterling (826),1.000000000,29.98,Debit,52692010070200818341467,02/04/2020,GLOUCESTER CITY COUNCIL
Gloucester City Council,23UE,Museum of Gloucester Catering,MU004,Hospitality & Refreshments,3104,12/03/2020,11/03/2020,ASDA SUPERSTORE,GLOUCESTER,GBR,GL1 1DS,REDACTED,556*********9934,5411,"GROCERY STORES, SUPERMARKETS",4.1,Pound Sterling (826),1.000000000,4.1,Debit,45377750072000353283636,02/04/2020,GLOUCESTER CITY COUNCIL
Gloucester City Council,23UE,Museum of Gloucester,MU002,General Supplies/Materials,3025,13/03/2020,12/03/2020,WWW.THEFPA.CO.UK,INTERNET,GBR,GL56 0RH,REDACTED,556*********9934,2741,MISCELLANEOUS PUBLISHING & PRINTING,46.5,Pound Sterling (826),1.000000000,46.5,Debit,05272460073910012034144,02/04/2020,GLOUCESTER CITY COUNCIL
Gloucester City Council,23UE,Museum of Gloucester,MU002,General Supplies/Materials,3025,26/03/2020,25/03/2020,AMZNMktplace,amazon.co.uk,GBR,EC2A 2FA,REDACTED,556*********9934,5999,MISCELLANEOUS AND RETAIL STORES,25.98,Pound Sterling (826),1.000000000,25.98,Debit,52692010085200243984314,02/04/2020,GLOUCESTER CITY COUNCIL
Gloucester City Council,23UE,Museum of Gloucester,MU002,General Supplies/Materials,3025,30/03/2020,27/03/2020,LYCO GROUP LTD,MILTON KEYNES,GBR,MK1 1ZR,REDACTED,556*********9934,5065,ELECTRICAL PARTS AND EQUIPMENT,35.96,Pound Sterling (826),1.000000000,35.96,Debit,15425950088000345880013,02/04/2020,GLOUCESTER CITY COUNCIL
Gloucester City Council,23UE,Museum of Gloucester,MU002,General Supplies/Materials,3025,30/03/2020,28/03/2020,AMZNMKTPLACE AMAZON.CO,AMAZON.CO.UK,GBR,EC2A 2FA,REDACTED,556*********9934,5999,MISCELLANEOUS AND RETAIL STORES,39.56,Pound Sterling (826),1.000000000,39.56,Debit,85389240088012550091155,02/04/2020,GLOUCESTER CITY COUNCIL
Gloucester City Council,23UE,Museum of Gloucester,MU002,General Supplies/Materials,3025,31/03/2020,30/03/2020,Amazon.co.uk*VP98L4MD5,AMAZON.CO.UK,LUX,L2338,REDACTED,556*********9934,5969,ALL OTHER DIRECT MARKETERS,11.98,Pound Sterling (826),1.000000000,11.98,Debit,52692010090200177390929,02/04/2020,GLOUCESTER CITY COUNCIL
Gloucester City Council,23UE,Managing Director & Directors,MT001,Public Transport - Staff,2402,10/03/2020,09/03/2020,Trainline,London,GBR,1445,REDACTED,556*********7811,4112,PASSENGER RAILWAYS,-186.5,Pound Sterling (826),1.000000000,-186.5,Credit,85130080069009830218041,02/04/2020,GLOUCESTER CITY COUNCIL
Gloucester City Council,23UE,Managing Director & Directors,MT001,Public Transport - Staff,2402,13/03/2020,12/03/2020,Trainline,London,GBR,1445,REDACTED,556*********7811,4112,PASSENGER RAILWAYS,-34.5,Pound Sterling (826),1.000000000,-34.5,Credit,85130080072010983503770,02/04/2020,GLOUCESTER CITY COUNCIL
Gloucester City Council,23UE,Managing Director & Directors,MT001,Public Transport - Staff,2402,13/03/2020,12/03/2020,Trainline,London,GBR,1445,REDACTED,556*********7811,4112,PASSENGER RAILWAYS,-35.4,Pound Sterling (826),1.000000000,-35.4,Credit,85130080072010983503846,02/04/2020,GLOUCESTER CITY COUNCIL
Gloucester City Council,23UE,Managing Director & Directors,MT001,Public Transport - Staff,2402,13/03/2020,12/03/2020,Trainline,London,GBR,1445,REDACTED,556*********7811,4112,PASSENGER RAILWAYS,-35.4,Pound Sterling (826),1.000000000,-35.4,Credit,85130080072010983504026,02/04/2020,GLOUCESTER CITY COUNCIL
Gloucester City Council,23UE,Healthy Homes,PS001,Compensation Payments,3711,03/03/2020,28/02/2020,NOW TV,.,,EH54 7BW,REDACTED,556*********1418,4899,"CABLE,SATELLITE & OTHER TV/RADIO SERVICE",60,Pound Sterling (826),1.000000000,60,Debit,55504430062039315259462,02/04/2020,GLOUCESTER CITY COUNCIL
Gloucester City Council,23UE,Managing Director & Directors,MT001,Public Transport - Staff,2402,06/03/2020,05/03/2020,Trainline,London,GBR,1445,REDACTED,556*********1418,4112,PASSENGER RAILWAYS,160.5,Pound Sterling (826),1.000000000,160.5,Debit,85130080065009635571846,02/04/2020,GLOUCESTER CITY COUNCIL
Gloucester City Council,23UE,Healthy Homes,PS001,Compensation Payments,3711,10/03/2020,06/03/2020,NOW TV,.,,EH54 7BW,REDACTED,556*********1418,4899,"CABLE,SATELLITE & OTHER TV/RADIO SERVICE",18,Pound Sterling (826),1.000000000,18,Debit,55504430069039350658183,02/04/2020,GLOUCESTER CITY COUNCIL
Gloucester City Council,23UE,Managing Director & Directors,MT001,Public Transport - Staff,2402,16/03/2020,13/03/2020,Trainline,London,GBR,1445,REDACTED,556*********1418,4112,PASSENGER RAILWAYS,-118.2,Pound Sterling (826),1.000000000,-118.2,Credit,85130080073010033400323,02/04/2020,GLOUCESTER CITY COUNCIL
Gloucester City Council,23UE,Countryside Unit,EP003,General Supplies/Materials,3025,03/03/2020,02/03/2020,PAYPAL *WU CHAN CHA EB,35314369001,GBR,TW91EH,REDACTED,556*********6734,5311,DEPARTMENT STORES,42.46,Pound Sterling (826),1.000000000,42.46,Debit,85130080062008468647205,02/04/2020,GLOUCESTER CITY COUNCIL
Gloucester City Council,23UE,Countryside Unit,EP003,Vehicle Repairs and Maintenance,2103,03/03/2020,02/03/2020,PAYPAL *IRFAN1981 EBAY,35314369001,GBR,TW91EH,REDACTED,556*********6734,5732,ELECTRONIC SALES,9.98,Pound Sterling (826),1.000000000,9.98,Debit,85130080062008468724301,02/04/2020,GLOUCESTER CITY COUNCIL
Gloucester City Council,23UE,Countryside Unit,EP003,Professional Membership & Subscriptions,3403,12/03/2020,11/03/2020,EB *GLOUCESTERSHIRE GR,801-413-7200,IRL,DUBLIN 8,REDACTED,556*********6734,7399,BUSINESS SERVICES NOT ELSEWHERE CLASSIFIED,-35,Pound Sterling (826),1.000000000,-35,Credit,15425950072002383123387,02/04/2020,GLOUCESTER CITY COUNCIL
Gloucester City Council,23UE,Countryside Unit,EP003,Operative Clothing Allowances,0502,23/03/2020,23/03/2020,AMZNMktplace,amazon.co.uk,GBR,EC2A 2FA,REDACTED,556*********6734,5999,MISCELLANEOUS AND RETAIL STORES,33.65,Pound Sterling (826),1.000000000,33.65,Debit,52692010083200714894127,02/04/2020,GLOUCESTER CITY COUNCIL
Gloucester City Council,23UE,Countryside Unit,EP003,General Supplies/Materials,3025,02/04/2020,01/04/2020,POUND FARM,GLOUCESTER,,GL4 0UG,REDACTED,556*********6734,5261,"NURSERIES, LAWN AND GARDEN SUPPLY STORES",70,Pound Sterling (826),1.000000000,70,Debit,55541960092937000597044,02/04/2020,GLOUCESTER CITY COUNCIL
Gloucester City Council,23UE,Gloucester Life Museum,MU005,Archiving,3402,04/03/2020,03/03/2020,AMZNMktplace,amazon.co.uk,GBR,EC2A 2FA,REDACTED,556*********8997,5999,MISCELLANEOUS AND RETAIL STORES,114.95,Pound Sterling (826),1.000000000,114.95,Debit,52692010063200059402373,02/04/2020,GLOUCESTER CITY COUNCIL
Gloucester City Council,23UE,Museum of Gloucester,MU002,Equipment and Furniture,3001,10/03/2020,09/03/2020,SP * BOUNCEPAD HQ,LONDON,LND,N17 9QP,REDACTED,556*********8997,5734,COMPUTER SOFTWARE STORES,622.8,Pound Sterling (826),1.000000000,622.8,Debit,85383900069000002157128,02/04/2020,GLOUCESTER CITY COUNCIL
Gloucester City Council,23UE,Museum of Gloucester,MU002,Equipment and Furniture,3001,10/03/2020,09/03/2020,CURRYS ONLINE,HEMEL HEMPSTE,GBR,HP2 7JG,REDACTED,556*********8997,5732,ELECTRONIC SALES,698,Pound Sterling (826),1.000000000,698,Debit,35377750070080346716325,02/04/2020,GLOUCESTER CITY COUNCIL
Gloucester City Council,23UE,Shopmobility,SM001,Cleaning Services & Materials,1500,17/03/2020,16/03/2020,JPs Hair & Beauty,Cinderford,GBR,GL14 2YD,REDACTED,556*********8997,7230,BEAUTY SHOPS AND BARBER SHOPS,61.6,Pound Sterling (826),1.000000000,61.6,Debit,05371340076222116918722,02/04/2020,GLOUCESTER CITY COUNCIL
Gloucester City Council,23UE,Museum of Gloucester,MU002,Cleaning Services & Materials,1500,17/03/2020,14/03/2020,VIKING UK,LEICESTER,GBR,LE4 2BN,REDACTED,556*********8997,5111,"STATIONERY,OFFICE SUPPLIES,PRINTING AND WRITING PAPER",39.48,Pound Sterling (826),1.000000000,39.48,Debit,15276320077001694312219,02/04/2020,GLOUCESTER CITY COUNCIL
Gloucester City Council,23UE,Guildhall Events,GH002,Advertising & Publicity,3404,19/03/2020,18/03/2020,MAILCHIMP *MONTHLY,MAILCHIMP.COM,GA,30308,REDACTED,556*********8997,5968,CONTINUITY/SUBSCRIPTION MERCHANTS,50.37,Pound Sterling (826),1.000000000,50.37,Debit,55425440078200823817491,02/04/2020,GLOUCESTER CITY COUNCIL
Gloucester City Council,23UE,Museum of Gloucester,MU002,Cleaning Services & Materials,1500,02/04/2020,15/03/2020,OUTOFEDEN.CO.UK,01768 372464,,CA174AP,REDACTED,556*********8997,5722,HOUSEHOLD APPLIANCE STORES,18.54,Pound Sterling (826),1.000000000,18.54,Debit,85481470093223284703584,02/04/2020,GLOUCESTER CITY COUNCIL
Gloucester City Council,23UE,Shopmobility,SM001,Cleaning Services & Materials,1500,02/04/2020,15/03/2020,OUTOFEDEN.CO.UK,01768 372464,,CA174AP,REDACTED,556*********8997,5722,HOUSEHOLD APPLIANCE STORES,18.54,Pound Sterling (826),1.000000000,18.54,Debit,85481470093223284703592,02/04/2020,GLOUCESTER CITY COUNCIL
Gloucester City Council,23UE,Docks Complex - Services,AM006,Building Repairs and Maintenance,1001,06/03/2020,05/03/2020,B & Q 1179,GLOUCESTER,,GL12SG,REDACTED,556*********4301,5200,HOME SUPPLY WAREHOUSE STORES,25.77,Pound Sterling (826),1.000000000,25.77,Debit,85481470066217444183763,02/04/2020,GLOUCESTER CITY COUNCIL
Gloucester City Council,23UE,Docks Complex - Services,AM006,Building Repairs and Maintenance,1001,16/03/2020,13/03/2020,HALFORDS 0749,GLOUCESTER,GBR,GL4 3EA,REDACTED,556*********4301,5940,BICYCLE SHOPS-SALES AND SERVICE,16,Pound Sterling (826),1.000000000,16,Debit,35377750074020324124536,02/04/2020,GLOUCESTER CITY COUNCIL
Gloucester City Council,23UE,Internal Health & Safety,HE004,General Supplies/Materials,3025,17/03/2020,16/03/2020,SQ *JAX FIRST AID LIMI,Stanley,GBR,DH99UU,REDACTED,556*********6128,8099,MEDICAL SERVICES & HEALTH PRACTITIONERS NOT ELSEWHERE CLASSIFED,86.87,Pound Sterling (826),1.000000000,86.87,Debit,85230740076010522968983,02/04/2020,GLOUCESTER CITY COUNCIL
Gloucester City Council,23UE,City Improvement and Environment Manager,NE013,Public Transport - Staff,2402,03/03/2020,02/03/2020,Trainline,London,GBR,1445,REDACTED,556*********4234,4112,PASSENGER RAILWAYS,11.05,Pound Sterling (826),1.000000000,11.05,Debit,85130080062008474816539,02/04/2020,GLOUCESTER CITY COUNCIL
Gloucester City Council,23UE,Economic Development,ED001,Professional Membership & Subscriptions,3403,12/03/2020,11/03/2020,PAYPAL *CONSTRUCTIN,35314369001,GBR,TW91EH,REDACTED,556*********4234,8641,"CIVIC, SOCIAL AND FRATERNAL ASSOCIATIONS",200,Pound Sterling (826),1.000000000,200,Debit,85130080071010915459134,02/04/2020,GLOUCESTER CITY COUNCIL
Gloucester City Council,23UE,Managing Director & Directors,MT001,Hospitality & Refreshments,3104,16/03/2020,13/03/2020,MARKS&SPENCER PLC,GLOUCESTER,GBR,GL1 1PH,REDACTED,556*********4234,5411,"GROCERY STORES, SUPERMARKETS",52.87,Pound Sterling (826),1.000000000,52.87,Debit,35377750074020339084071,02/04/2020,GLOUCESTER CITY COUNCIL
Gloucester City Council,23UE,Democratic Services,DS003,Public Transport - Staff,2402,10/03/2020,09/03/2020,Trainline,London,GBR,1445,REDACTED,556*********3029,4112,PASSENGER RAILWAYS,88.3,Pound Sterling (826),1.000000000,88.3,Debit,85130080069009830219817,02/04/2020,GLOUCESTER CITY COUNCIL
Gloucester City Council,23UE,Housing Services,HS001,B&B Payments,1303,03/03/2020,02/03/2020,TRAVELODGE GB0000,THAME,,OX9 3AT,REDACTED,556*********6959,3615,TRAVELODGE,173.87,Pound Sterling (826),1.000000000,173.87,Debit,55504430062298133120690,02/04/2020,GLOUCESTER CITY COUNCIL
Gloucester City Council,23UE,Housing Services,HS001,B&B Payments,1303,03/03/2020,02/03/2020,TRAVELODGE GB0000,THAME,,OX9 3AT,REDACTED,556*********6959,3615,TRAVELODGE,158.06,Pound Sterling (826),1.000000000,158.06,Debit,55504430062298133134501,02/04/2020,GLOUCESTER CITY COUNCIL
Gloucester City Council,23UE,Housing Services,HS001,B&B Payments,1303,03/03/2020,02/03/2020,TRAVELODGE GB0000,THAME,,OX9 3AT,REDACTED,556*********6959,3615,TRAVELODGE,45.88,Pound Sterling (826),1.000000000,45.88,Debit,55504430062298133147560,02/04/2020,GLOUCESTER CITY COUNCIL
Gloucester City Council,23UE,Housing Services,HS001,B&B Payments,1303,04/03/2020,03/03/2020,TRAVELODGE GB0000,THAME,,OX9 3AT,REDACTED,556*********6959,3615,TRAVELODGE,120.33,Pound Sterling (826),1.000000000,120.33,Debit,55504430063298140718618,02/04/2020,GLOUCESTER CITY COUNCIL
Gloucester City Council,23UE,Housing Services,HS001,B&B Payments,1303,05/03/2020,04/03/2020,TRAVELODGE GB0000,THAME,,OX9 3AT,REDACTED,556*********6959,3615,TRAVELODGE,147.87,Pound Sterling (826),1.000000000,147.87,Debit,55504430064298147726001,02/04/2020,GLOUCESTER CITY COUNCIL
Gloucester City Council,23UE,Housing Services,HS001,B&B Payments,1303,05/03/2020,04/03/2020,TRAVELODGE GB0000,THAME,,OX9 3AT,REDACTED,556*********6959,3615,TRAVELODGE,60.16,Pound Sterling (826),1.000000000,60.16,Debit,55504430064298147724683,02/04/2020,GLOUCESTER CITY COUNCIL
Gloucester City Council,23UE,Housing Services,HS001,B&B Payments,1303,06/03/2020,05/03/2020,TRAVELODGE GB0000,THAME,,OX9 3AT,REDACTED,556*********6959,3615,TRAVELODGE,332.46,Pound Sterling (826),1.000000000,332.46,Debit,55504430065298154182733,02/04/2020,GLOUCESTER CITY COUNCIL
Gloucester City Council,23UE,Housing Services,HS001,Mileage and Travel Allowances,2401,09/03/2020,06/03/2020,VERIFONE TAXI/PRIVATE,LONDON,GBR,SE5 0TA,REDACTED,556*********6959,4121,TAXICABS/LIMOUSINES,23,Pound Sterling (826),1.000000000,23,Debit,05272470067910009119954,02/04/2020,GLOUCESTER CITY COUNCIL
Gloucester City Council,23UE,Housing Services,HS001,B&B Payments,1303,09/03/2020,06/03/2020,IBIS GLOUCESTER,GLOUCESTER,GBR,GL43DG,REDACTED,556*********6959,3533,HOTEL IBIS,133,Pound Sterling (826),1.000000000,133,Debit,55184220066540678756760,02/04/2020,GLOUCESTER CITY COUNCIL
Gloucester City Council,23UE,Housing Services,HS001,B&B Payments,1303,10/03/2020,09/03/2020,TRAVELODGE GB0000,THAME,,OX9 3AT,REDACTED,556*********6959,3615,TRAVELODGE,206.01,Pound Sterling (826),1.000000000,206.01,Debit,55504430069298179374600,02/04/2020,GLOUCESTER CITY COUNCIL
Gloucester City Council,23UE,Housing Services,HS001,B&B Payments,1303,10/03/2020,09/03/2020,IBIS GLOUCESTER,GLOUCESTER,GBR,GL43DG,REDACTED,556*********6959,3533,HOTEL IBIS,891,Pound Sterling (826),1.000000000,891,Debit,55184220069530706494010,02/04/2020,GLOUCESTER CITY COUNCIL
Gloucester City Council,23UE,Housing Services,HS001,B&B Payments,1303,12/03/2020,11/03/2020,TRAVELODGE GB0000,THAME,,OX9 3AT,REDACTED,556*********6959,3615,TRAVELODGE,203.95,Pound Sterling (826),1.000000000,203.95,Debit,55504430071298194116073,02/04/2020,GLOUCESTER CITY COUNCIL
Gloucester City Council,23UE,Housing Services,HS001,B&B Payments,1303,12/03/2020,11/03/2020,TRAVELODGE GB0000,THAME,,OX9 3AT,REDACTED,556*********6959,3615,TRAVELODGE,585.33,Pound Sterling (826),1.000000000,585.33,Debit,55504430071298194116834,02/04/2020,GLOUCESTER CITY COUNCIL
Gloucester City Council,23UE,Housing Services,HS001,B&B Payments,1303,12/03/2020,11/03/2020,TRAVELODGE GB0000,THAME,,OX9 3AT,REDACTED,556*********6959,3615,TRAVELODGE,173.38,Pound Sterling (826),1.000000000,173.38,Debit,55504430071298194146054,02/04/2020,GLOUCESTER CITY COUNCIL
Gloucester City Council,23UE,Housing Services,HS001,B&B Payments,1303,12/03/2020,11/03/2020,TRAVELODGE GB0000,THAME,,OX9 3AT,REDACTED,556*********6959,3615,TRAVELODGE,118.3,Pound Sterling (826),1.000000000,118.3,Debit,55504430071298194186266,02/04/2020,GLOUCESTER CITY COUNCIL
Gloucester City Council,23UE,Housing Services,HS001,B&B Payments,1303,16/03/2020,13/03/2020,TRAVELODGE GB0000,THAME,,OX9 3AT,REDACTED,556*********6959,3615,TRAVELODGE,177.44,Pound Sterling (826),1.000000000,177.44,Debit,55504430073298107337236,02/04/2020,GLOUCESTER CITY COUNCIL
Gloucester City Council,23UE,Housing Services,HS001,B&B Payments,1303,16/03/2020,13/03/2020,TRAVELODGE GB0000,THAME,,OX9 3AT,REDACTED,556*********6959,3615,TRAVELODGE,599.61,Pound Sterling (826),1.000000000,599.61,Debit,55504430073298107327609,02/04/2020,GLOUCESTER CITY COUNCIL
Gloucester City Council,23UE,Housing Services,HS001,B&B Payments,1303,17/03/2020,16/03/2020,TRAVELODGE GB0000,THAME,,OX9 3AT,REDACTED,556*********6959,3615,TRAVELODGE,270.22,Pound Sterling (826),1.000000000,270.22,Debit,55504430076298119075136,02/04/2020,GLOUCESTER CITY COUNCIL
Gloucester City Council,23UE,Housing Services,HS001,B&B Payments,1303,19/03/2020,17/03/2020,PREMIER INN 44537895,GLOUCESTER,,GL1 5SF,REDACTED,556*********6959,3811,PREMIER INN,169.5,Pound Sterling (826),1.000000000,169.5,Debit,55541960079529000207380,02/04/2020,GLOUCESTER CITY COUNCIL
Gloucester City Council,23UE,Housing Services,HS001,B&B Payments,1303,19/03/2020,18/03/2020,TRAVELODGE GB0000,THAME,,OX9 3AT,REDACTED,556*********6959,3615,TRAVELODGE,49.96,Pound Sterling (826),1.000000000,49.96,Debit,55504430078298129500899,02/04/2020,GLOUCESTER CITY COUNCIL
Gloucester City Council,23UE,Housing Services,HS001,B&B Payments,1303,19/03/2020,18/03/2020,TRAVELODGE GB0000,THAME,,OX9 3AT,REDACTED,556*********6959,3615,TRAVELODGE,197.82,Pound Sterling (826),1.000000000,197.82,Debit,55504430078298129576097,02/04/2020,GLOUCESTER CITY COUNCIL
Gloucester City Council,23UE,Housing Services,HS001,B&B Payments,1303,20/03/2020,19/03/2020,TRAVELODGE GB0000,THAME,,OX9 3AT,REDACTED,556*********6959,3615,TRAVELODGE,188.64,Pound Sterling (826),1.000000000,188.64,Debit,55504430079298133256552,02/04/2020,GLOUCESTER CITY COUNCIL
Gloucester City Council,23UE,Housing Services,HS001,B&B Payments,1303,20/03/2020,19/03/2020,TRAVELODGE GB0000,THAME,,OX9 3AT,REDACTED,556*********6959,3615,TRAVELODGE,236.57,Pound Sterling (826),1.000000000,236.57,Debit,55504430079298133328443,02/04/2020,GLOUCESTER CITY COUNCIL
Gloucester City Council,23UE,Housing Services,HS001,B&B Payments,1303,20/03/2020,19/03/2020,TRAVELODGE GB0000,THAME,,OX9 3AT,REDACTED,556*********6959,3615,TRAVELODGE,39.76,Pound Sterling (826),1.000000000,39.76,Debit,55504430079298133324855,02/04/2020,GLOUCESTER CITY COUNCIL
Gloucester City Council,23UE,Housing Services,HS001,B&B Payments,1303,23/03/2020,20/03/2020,WWW.ROOMSBOOKED.COM,INTERNET,GBR,GL50 4BA,REDACTED,556*********6959,7011,"LODGING, HOTELS, MOTELS, RESORTS",560,Pound Sterling (826),1.000000000,560,Debit,05272460081910019087327,02/04/2020,GLOUCESTER CITY COUNCIL
Gloucester City Council,23UE,Housing Services,HS001,B&B Payments,1303,23/03/2020,20/03/2020,WWW.ROOMSBOOKED.COM,INTERNET,GBR,GL50 4BA,REDACTED,556*********6959,7011,"LODGING, HOTELS, MOTELS, RESORTS",560,Pound Sterling (826),1.000000000,560,Debit,05272460081910019087418,02/04/2020,GLOUCESTER CITY COUNCIL
Gloucester City Council,23UE,Housing Services,HS001,B&B Payments,1303,23/03/2020,19/03/2020,PREMIER INN 44537895,GLOUCESTER,,GL1 5SF,REDACTED,556*********6959,3811,PREMIER INN,69,Pound Sterling (826),1.000000000,69,Debit,55541960082529000394910,02/04/2020,GLOUCESTER CITY COUNCIL
Gloucester City Council,23UE,Housing Services,HS001,B&B Payments,1303,23/03/2020,20/03/2020,PREMIER INN 44537895,GLOUCESTER,,GL1 5SF,REDACTED,556*********6959,3811,PREMIER INN,181,Pound Sterling (826),1.000000000,181,Debit,55541960082529000395586,02/04/2020,GLOUCESTER CITY COUNCIL
Gloucester City Council,23UE,Housing Services,HS001,Mileage and Travel Allowances,2401,24/03/2020,23/03/2020,SQ *ASSOCIATED TAXIS,Gloucester,GBR,GL14JJ,REDACTED,556*********6959,4121,TAXICABS/LIMOUSINES,70,Pound Sterling (826),1.000000000,70,Debit,85230740083011552985336,02/04/2020,GLOUCESTER CITY COUNCIL
Gloucester City Council,23UE,Housing Services,HS001,B&B Payments,1303,24/03/2020,23/03/2020,TRAVELODGE GB0000,THAME,,OX9 3AT,REDACTED,556*********6959,3615,TRAVELODGE,315.1,Pound Sterling (826),1.000000000,315.1,Debit,55504430083298142664154,02/04/2020,GLOUCESTER CITY COUNCIL
Gloucester City Council,23UE,Housing Services,HS001,B&B Payments,1303,24/03/2020,23/03/2020,TRAVELODGE GB0000,THAME,,OX9 3AT,REDACTED,556*********6959,3615,TRAVELODGE,313.06,Pound Sterling (826),1.000000000,313.06,Debit,55504430083298142631351,02/04/2020,GLOUCESTER CITY COUNCIL
Gloucester City Council,23UE,Housing Services,HS001,B&B Payments,1303,24/03/2020,23/03/2020,WWW.ROOMSBOOKED.COM,INTERNET,GBR,GL50 4BA,REDACTED,556*********6959,7011,"LODGING, HOTELS, MOTELS, RESORTS",560,Pound Sterling (826),1.000000000,560,Debit,05272460084910019070940,02/04/2020,GLOUCESTER CITY COUNCIL
Gloucester City Council,23UE,Housing Services,HS001,B&B Payments,1303,24/03/2020,23/03/2020,WWW.ROOMSBOOKED.COM,INTERNET,GBR,GL50 4BA,REDACTED,556*********6959,7011,"LODGING, HOTELS, MOTELS, RESORTS",560,Pound Sterling (826),1.000000000,560,Debit,05272460084910019070965,02/04/2020,GLOUCESTER CITY COUNCIL
Gloucester City Council,23UE,Housing Services,HS001,B&B Payments,1303,24/03/2020,23/03/2020,WWW.ROOMSBOOKED.COM,INTERNET,GBR,GL50 4BA,REDACTED,556*********6959,7011,"LODGING, HOTELS, MOTELS, RESORTS",560,Pound Sterling (826),1.000000000,560,Debit,05272460084910019070981,02/04/2020,GLOUCESTER CITY COUNCIL
Gloucester City Council,23UE,Housing Services,HS001,B&B Payments,1303,24/03/2020,23/03/2020,WWW.ROOMSBOOKED.COM,INTERNET,GBR,GL50 4BA,REDACTED,556*********6959,7011,"LODGING, HOTELS, MOTELS, RESORTS",560,Pound Sterling (826),1.000000000,560,Debit,05272460084910019071013,02/04/2020,GLOUCESTER CITY COUNCIL
Gloucester City Council,23UE,Housing Services,HS001,B&B Payments,1303,24/03/2020,23/03/2020,WWW.ROOMSBOOKED.COM,INTERNET,GBR,GL50 4BA,REDACTED,556*********6959,7011,"LODGING, HOTELS, MOTELS, RESORTS",560,Pound Sterling (826),1.000000000,560,Debit,05272460084910019071245,02/04/2020,GLOUCESTER CITY COUNCIL
Gloucester City Council,23UE,Housing Services,HS001,B&B Payments,1303,24/03/2020,23/03/2020,WWW.ROOMSBOOKED.COM,INTERNET,GBR,GL50 4BA,REDACTED,556*********6959,7011,"LODGING, HOTELS, MOTELS, RESORTS",560,Pound Sterling (826),1.000000000,560,Debit,05272460084910019071294,02/04/2020,GLOUCESTER CITY COUNCIL
Gloucester City Council,23UE,Housing Services,HS001,B&B Payments,1303,24/03/2020,23/03/2020,WWW.ROOMSBOOKED.COM,INTERNET,GBR,GL50 4BA,REDACTED,556*********6959,7011,"LODGING, HOTELS, MOTELS, RESORTS",560,Pound Sterling (826),1.000000000,560,Debit,05272460084910019071468,02/04/2020,GLOUCESTER CITY COUNCIL
Gloucester City Council,23UE,Housing Services,HS001,B&B Payments,1303,25/03/2020,24/03/2020,WWW.ROOMSBOOKED.COM,INTERNET,GBR,GL50 4BA,REDACTED,556*********6959,7011,"LODGING, HOTELS, MOTELS, RESORTS",560,Pound Sterling (826),1.000000000,560,Debit,05272460085910019031610,02/04/2020,GLOUCESTER CITY COUNCIL
Gloucester City Council,23UE,Housing Services,HS001,B&B Payments,1303,25/03/2020,24/03/2020,WWW.ROOMSBOOKED.COM,INTERNET,GBR,GL50 4BA,REDACTED,556*********6959,7011,"LODGING, HOTELS, MOTELS, RESORTS",560,Pound Sterling (826),1.000000000,560,Debit,05272460085910019031628,02/04/2020,GLOUCESTER CITY COUNCIL
Gloucester City Council,23UE,Housing Services,HS001,B&B Payments,1303,25/03/2020,24/03/2020,WWW.ROOMSBOOKED.COM,INTERNET,GBR,GL50 4BA,REDACTED,556*********6959,7011,"LODGING, HOTELS, MOTELS, RESORTS",560,Pound Sterling (826),1.000000000,560,Debit,05272460085910019031651,02/04/2020,GLOUCESTER CITY COUNCIL
Gloucester City Council,23UE,Housing Services,HS001,B&B Payments,1303,25/03/2020,24/03/2020,WWW.ROOMSBOOKED.COM,INTERNET,GBR,GL50 4BA,REDACTED,556*********6959,7011,"LODGING, HOTELS, MOTELS, RESORTS",560,Pound Sterling (826),1.000000000,560,Debit,05272460085910019031693,02/04/2020,GLOUCESTER CITY COUNCIL
Gloucester City Council,23UE,Housing Services,HS001,B&B Payments,1303,25/03/2020,24/03/2020,WWW.ROOMSBOOKED.COM,INTERNET,GBR,GL50 4BA,REDACTED,556*********6959,7011,"LODGING, HOTELS, MOTELS, RESORTS",560,Pound Sterling (826),1.000000000,560,Debit,05272460085910019031735,02/04/2020,GLOUCESTER CITY COUNCIL
Gloucester City Council,23UE,Housing Services,HS001,B&B Payments,1303,26/03/2020,25/03/2020,WWW.ROOMSBOOKED.COM,INTERNET,GBR,GL50 4BA,REDACTED,556*********6959,7011,"LODGING, HOTELS, MOTELS, RESORTS",560,Pound Sterling (826),1.000000000,560,Debit,05272460086910019030058,02/04/2020,GLOUCESTER CITY COUNCIL
Gloucester City Council,23UE,Housing Services,HS001,B&B Payments,1303,26/03/2020,25/03/2020,WWW.ROOMSBOOKED.COM,INTERNET,GBR,GL50 4BA,REDACTED,556*********6959,7011,"LODGING, HOTELS, MOTELS, RESORTS",560,Pound Sterling (826),1.000000000,560,Debit,05272460086910019030082,02/04/2020,GLOUCESTER CITY COUNCIL
Gloucester City Council,23UE,Housing Services,HS001,B&B Payments,1303,26/03/2020,25/03/2020,WWW.ROOMSBOOKED.COM,INTERNET,GBR,GL50 4BA,REDACTED,556*********6959,7011,"LODGING, HOTELS, MOTELS, RESORTS",560,Pound Sterling (826),1.000000000,560,Debit,05272460086910019030090,02/04/2020,GLOUCESTER CITY COUNCIL
Gloucester City Council,23UE,Housing Services,HS001,B&B Payments,1303,26/03/2020,25/03/2020,WWW.ROOMSBOOKED.COM,INTERNET,GBR,GL50 4BA,REDACTED,556*********6959,7011,"LODGING, HOTELS, MOTELS, RESORTS",560,Pound Sterling (826),1.000000000,560,Debit,05272460086910019030124,02/04/2020,GLOUCESTER CITY COUNCIL
Gloucester City Council,23UE,Housing Services,HS001,B&B Payments,1303,26/03/2020,25/03/2020,WWW.ROOMSBOOKED.COM,INTERNET,GBR,GL50 4BA,REDACTED,556*********6959,7011,"LODGING, HOTELS, MOTELS, RESORTS",560,Pound Sterling (826),1.000000000,560,Debit,05272460086910019030173,02/04/2020,GLOUCESTER CITY COUNCIL
Gloucester City Council,23UE,Housing Services,HS001,B&B Payments,1303,26/03/2020,25/03/2020,WWW.ROOMSBOOKED.COM,INTERNET,GBR,GL50 4BA,REDACTED,556*********6959,7011,"LODGING, HOTELS, MOTELS, RESORTS",560,Pound Sterling (826),1.000000000,560,Debit,05272460086910019030223,02/04/2020,GLOUCESTER CITY COUNCIL
Gloucester City Council,23UE,Housing Services,HS001,B&B Payments,1303,26/03/2020,25/03/2020,WWW.ROOMSBOOKED.COM,INTERNET,GBR,GL50 4BA,REDACTED,556*********6959,7011,"LODGING, HOTELS, MOTELS, RESORTS",560,Pound Sterling (826),1.000000000,560,Debit,05272460086910019030348,02/04/2020,GLOUCESTER CITY COUNCIL
Gloucester City Council,23UE,Housing Services,HS001,B&B Payments,1303,26/03/2020,25/03/2020,WWW.ROOMSBOOKED.COM,INTERNET,GBR,GL50 4BA,REDACTED,556*********6959,7011,"LODGING, HOTELS, MOTELS, RESORTS",560,Pound Sterling (826),1.000000000,560,Debit,05272460086910019030355,02/04/2020,GLOUCESTER CITY COUNCIL
Gloucester City Council,23UE,Housing Services,HS001,B&B Payments,1303,26/03/2020,25/03/2020,WWW.ROOMSBOOKED.COM,INTERNET,GBR,GL50 4BA,REDACTED,556*********6959,7011,"LODGING, HOTELS, MOTELS, RESORTS",560,Pound Sterling (826),1.000000000,560,Debit,05272460086910019030371,02/04/2020,GLOUCESTER CITY COUNCIL
Gloucester City Council,23UE,Housing Services,HS001,B&B Payments,1303,26/03/2020,25/03/2020,WWW.ROOMSBOOKED.COM,INTERNET,GBR,GL50 4BA,REDACTED,556*********6959,7011,"LODGING, HOTELS, MOTELS, RESORTS",560,Pound Sterling (826),1.000000000,560,Debit,05272460086910019030561,02/04/2020,GLOUCESTER CITY COUNCIL
Gloucester City Council,23UE,Housing Services,HS001,B&B Payments,1303,27/03/2020,26/03/2020,WWW.ROOMSBOOKED.COM,INTERNET,GBR,GL50 4BA,REDACTED,556*********6959,7011,"LODGING, HOTELS, MOTELS, RESORTS",560,Pound Sterling (826),1.000000000,560,Debit,05272460087910019026691,02/04/2020,GLOUCESTER CITY COUNCIL
Gloucester City Council,23UE,Gloucester Guildhall,GH001,Public Transport - Staff,2402,05/03/2020,04/03/2020,thetrainline.com,+443332022222,GBR,EC1N 2TD,REDACTED,556*********8256,4112,PASSENGER RAILWAYS,37,Pound Sterling (826),1.000000000,37,Debit,15265670064000038920758,02/04/2020,GLOUCESTER CITY COUNCIL
Gloucester City Council,23UE,Guildhall Events,GH002,Advertising & Publicity,3404,06/03/2020,05/03/2020,WWW.INSTANTPRINT.C,01709 382202,,S63 5DR,REDACTED,556*********8256,7338,QUICK-COPY AND REPRODUCTION SERVICES,25.99,Pound Sterling (826),1.000000000,25.99,Debit,85481470066217413120440,02/04/2020,GLOUCESTER CITY COUNCIL
Gloucester City Council,23UE,Gloucester Guildhall,GH001,Equipment and Furniture,3001,10/03/2020,09/03/2020,PAYPAL *BLUECHARGED EB,35314369001,GBR,TW91EH,REDACTED,556*********8256,5732,ELECTRONIC SALES,3.58,Pound Sterling (826),1.000000000,3.58,Debit,85130080069009820977382,02/04/2020,GLOUCESTER CITY COUNCIL
Gloucester City Council,23UE,Gloucester Guildhall,GH001,Equipment and Furniture,3001,10/03/2020,09/03/2020,PAYPAL *ELEPHONE EBAY,35314369001,GBR,TW91EH,REDACTED,556*********8256,5732,ELECTRONIC SALES,2.15,Pound Sterling (826),1.000000000,2.15,Debit,85130080069009820982010,02/04/2020,GLOUCESTER CITY COUNCIL
Gloucester City Council,23UE,Museum of Gloucester,MU002,Equipment and Furniture,3001,10/03/2020,09/03/2020,CURRYS ONLINE,HEMEL HEMPSTE,GBR,HP2 7JG,REDACTED,556*********8256,5732,ELECTRONIC SALES,349,Pound Sterling (826),1.000000000,349,Debit,35377750070080346754912,02/04/2020,GLOUCESTER CITY COUNCIL
Gloucester City Council,23UE,Gloucester Guildhall,GH001,Equipment and Furniture,3001,11/03/2020,10/03/2020,B&M RETAIL LTD,HS GLOUCESTER,,GL12DH,REDACTED,556*********8256,5310,DISCOUNT STORES,30,Pound Sterling (826),1.000000000,30,Debit,85481470071218871627234,02/04/2020,GLOUCESTER CITY COUNCIL
Gloucester City Council,23UE,Guildhall Cinema,GH003,Advertising & Publicity,3404,11/03/2020,10/03/2020,WWW.INSTANTPRINT.C,01709 382202,,S63 5DR,REDACTED,556*********8256,7338,QUICK-COPY AND REPRODUCTION SERVICES,49.99,Pound Sterling (826),1.000000000,49.99,Debit,85481470071218717150219,02/04/2020,GLOUCESTER CITY COUNCIL
Gloucester City Council,23UE,Gloucester Guildhall,GH001,Operative Clothing Allowances,0502,13/03/2020,12/03/2020,WWW.CLOTHES2ORDER.COM,MANCHESTER M1,GBR,M17 1EH,REDACTED,556*********8256,5137,"MEN'S,WOMEN'S AND CHILDREN'S UNIFORMS AN",497.71,Pound Sterling (826),1.000000000,497.71,Debit,15276320073000471461193,02/04/2020,GLOUCESTER CITY COUNCIL
Gloucester City Council,23UE,Museum of Gloucester,MU002,External Training Course Fees,0550,13/03/2020,12/03/2020,EB *TEG ENGAGING EXHIB,801-413-7200,IRL,DUBLIN 8,REDACTED,556*********8256,7399,BUSINESS SERVICES NOT ELSEWHERE CLASSIFIED,70.66,Pound Sterling (826),1.000000000,70.66,Debit,15425950073000157088694,02/04/2020,GLOUCESTER CITY COUNCIL
Gloucester City Council,23UE,Museum of Gloucester,MU002,External Training Course Fees,0550,16/03/2020,12/03/2020,MUSEUMS ASCTN,LONDON,,EC1R 0AZ,REDACTED,556*********8256,5971,ART DEALERS AND GALLERIES,125,Pound Sterling (826),1.000000000,125,Debit,85481470073219303344610,02/04/2020,GLOUCESTER CITY COUNCIL
Gloucester City Council,23UE,Guildhall Bar and Caf�,GH005,Equipment and Furniture,3001,16/03/2020,12/03/2020,PAYPAL *CULTFURNITU,35314369001,GBR,SW83JH,REDACTED,556*********8256,5712,"FURNITURE, HOME FURNISHINGS AND EQUIPMENT STORES",76.95,Pound Sterling (826),1.000000000,76.95,Debit,85130080073010985931895,02/04/2020,GLOUCESTER CITY COUNCIL
Gloucester City Council,23UE,Gloucester Guildhall,GH001,Equipment and Furniture,3001,16/03/2020,13/03/2020,ARGOS LTD,INTERNET,,MK92NW,REDACTED,556*********8256,5310,DISCOUNT STORES,34.99,Pound Sterling (826),1.000000000,34.99,Debit,85481470075219800081044,02/04/2020,GLOUCESTER CITY COUNCIL
Gloucester City Council,23UE,Gloucester Guildhall,GH001,Equipment and Furniture,3001,16/03/2020,13/03/2020,ARGOS LTD,INTERNET,,MK92NW,REDACTED,556*********8256,5310,DISCOUNT STORES,69.98,Pound Sterling (826),1.000000000,69.98,Debit,85481470075219800080129,02/04/2020,GLOUCESTER CITY COUNCIL
Gloucester City Council,23UE,Gloucester Guildhall,GH001,Equipment and Furniture,3001,16/03/2020,13/03/2020,ARGOS LTD,INTERNET,,MK92NW,REDACTED,556*********8256,5310,DISCOUNT STORES,34.99,Pound Sterling (826),1.000000000,34.99,Debit,85481470075219764454690,02/04/2020,GLOUCESTER CITY COUNCIL
Gloucester City Council,23UE,Guildhall Events,GH002,Advertising & Publicity,3404,19/03/2020,19/03/2020,FACEBK *GQCSXRS9X2,fb.me/ads,IRL,UNKNOWN,REDACTED,556*********8256,7311,ADVERTISING SERVICES,191.12,Pound Sterling (826),1.000000000,191.12,Debit,55204720079200877169600,02/04/2020,GLOUCESTER CITY COUNCIL
Gloucester City Council,23UE,Gloucester Guildhall,GH001,Building Repairs and Maintenance,1001,20/03/2020,19/03/2020,B & Q 1179,GLOUCESTER,,GL12SG,REDACTED,556*********8256,5200,HOME SUPPLY WAREHOUSE STORES,469.68,Pound Sterling (826),1.000000000,469.68,Debit,85481470080221134581437,02/04/2020,GLOUCESTER CITY COUNCIL
Gloucester City Council,23UE,Gloucester Guildhall,GH001,Building Repairs and Maintenance,1001,20/03/2020,19/03/2020,B & Q 1179,GLOUCESTER,,GL12SG,REDACTED,556*********8256,5200,HOME SUPPLY WAREHOUSE STORES,46,Pound Sterling (826),1.000000000,46,Debit,85481470080221134581445,02/04/2020,GLOUCESTER CITY COUNCIL
Gloucester City Council,23UE,Gloucester Guildhall,GH001,Equipment and Furniture,3001,23/03/2020,22/03/2020,AMZNMktplace,amazon.co.uk,GBR,EC2A 2FA,REDACTED,556*********8256,5999,MISCELLANEOUS AND RETAIL STORES,56.48,Pound Sterling (826),1.000000000,56.48,Debit,52692010082200676392111,02/04/2020,GLOUCESTER CITY COUNCIL
Gloucester City Council,23UE,Blackfriars ,GH010,Advertising & Publicity,3404,01/04/2020,31/03/2020,FACEBK R4GN9RWD72,fb.me/ads,IRL,2,REDACTED,556*********8256,7311,ADVERTISING SERVICES,50,Pound Sterling (826),1.000000000,50,Debit,15265670091000105287443,02/04/2020,GLOUCESTER CITY COUNCIL
Gloucester City Council,23UE,Guildhall Cinema,GH003,Advertising & Publicity,3404,01/04/2020,31/03/2020,FACEBK R4GN9RWD72,fb.me/ads,IRL,2,REDACTED,556*********8256,7311,ADVERTISING SERVICES,50,Pound Sterling (826),1.000000000,50,Debit,15265670091000105287443,02/04/2020,GLOUCESTER CITY COUNCIL
Gloucester City Council,23UE,Guildhall Bar and Caf�,GH005,Advertising & Publicity,3404,01/04/2020,31/03/2020,FACEBK R4GN9RWD72,fb.me/ads,IRL,2,REDACTED,556*********8256,7311,ADVERTISING SERVICES,12.13,Pound Sterling (826),1.000000000,12.13,Debit,15265670091000105287443,02/04/2020,GLOUCESTER CITY COUNCIL
Gloucester City Council,23UE,Gloucester Guildhall,GH001,Equipment and Furniture,3001,02/04/2020,01/04/2020,Microsoft*Office 365 H,Reading,GBR,RG6 1WG,REDACTED,556*********8256,5816,DIGITAL GOODS - GAMES,79.99,Pound Sterling (826),1.000000000,79.99,Debit,15265670092000278897647,02/04/2020,GLOUCESTER CITY COUNCIL
Gloucester City Council,23UE,Civica Admin Charges,BI002,Professional Advice/Consultant Fees,3952,03/03/2020,02/03/2020,WWW.GOV.UK,C@HMCTS.GSI.G,,LS1 2BA,REDACTED,556*********3063,8999,PROFESSIONAL SERVICES NOT ELSEWHERE CLASSIFIED,1.5,Pound Sterling (826),1.000000000,1.5,Debit,85481470063216622775617,02/04/2020,GLOUCESTER CITY COUNCIL
Gloucester City Council,23UE,Business Transformation,BI006,Equipment and Furniture,3001,04/03/2020,03/03/2020,STONE COMPUTERS,01785 285567,,ST189AA,REDACTED,556*********3063,7372,COMPUTER AND DATA PROCESSING SERVICES,22.39,Pound Sterling (826),1.000000000,22.39,Debit,85481470064216933356296,02/04/2020,GLOUCESTER CITY COUNCIL
Gloucester City Council,23UE,Civica Admin Charges,BI002,Public Transport - Staff,2402,09/03/2020,06/03/2020,WWW.REDSPOTTEDHANKY.CO,08003777748,,NW1 3HG,REDACTED,556*********3063,4112,PASSENGER RAILWAYS,77.5,Pound Sterling (826),1.000000000,77.5,Debit,55504430066081162710755,02/04/2020,GLOUCESTER CITY COUNCIL
Gloucester City Council,23UE,Business Transformation,BI006,Equipment and Furniture,3001,09/03/2020,07/03/2020,Amazon.co.uk*HR1VR5BT5,AMAZON.CO.UK,LUX,L2338,REDACTED,556*********3063,5969,ALL OTHER DIRECT MARKETERS,12.45,Pound Sterling (826),1.000000000,12.45,Debit,52692010067200119391976,02/04/2020,GLOUCESTER CITY COUNCIL
Gloucester City Council,23UE,Elections,DS004,Professional Advice/Consultant Fees,3952,09/03/2020,06/03/2020,WWW.ICO.ORG.UK,03031231113,,SK9 5AF,REDACTED,556*********3063,9399,GOVERNMENT SERVICES NOT ELSEWHERE CLASSIFIED,60,Pound Sterling (826),1.000000000,60,Debit,55504430068295338978272,02/04/2020,GLOUCESTER CITY COUNCIL
Gloucester City Council,23UE,Cemeteries,CC004,Equipment and Furniture,3001,13/03/2020,12/03/2020,WWW.IKEA.COM,PETERBOROUGH,,PE2 9ET,REDACTED,556*********3063,5712,"FURNITURE, HOME FURNISHINGS AND EQUIPMENT STORES",1193.5,Pound Sterling (826),1.000000000,1193.5,Debit,85481470072219196799087,02/04/2020,GLOUCESTER CITY COUNCIL
Gloucester City Council,23UE,The Arbor,CC001,Laundry Costs,3060,13/03/2020,12/03/2020,ASDA GEORGE COM LEEDS,LEEDS,GBR,LS11 5AD,REDACTED,556*********3063,5411,"GROCERY STORES, SUPERMARKETS",186.95,Pound Sterling (826),1.000000000,186.95,Debit,35377750073010382454082,02/04/2020,GLOUCESTER CITY COUNCIL
Gloucester City Council,23UE,Community Wellbeing,FL001,Mileage and Travel Allowances,2401,17/03/2020,16/03/2020,THE BEECHES,BIRMINGHAM,GBR,B30 1LS,REDACTED,556*********3063,7011,"LODGING, HOTELS, MOTELS, RESORTS",127,Pound Sterling (826),1.000000000,127,Debit,05272460077910001252067,02/04/2020,GLOUCESTER CITY COUNCIL
Gloucester City Council,23UE,Community Wellbeing,FL001,Mileage and Travel Allowances,2401,17/03/2020,16/03/2020,THE BEECHES,BIRMINGHAM,GBR,B30 1LS,REDACTED,556*********3063,7011,"LODGING, HOTELS, MOTELS, RESORTS",127,Pound Sterling (826),1.000000000,127,Debit,05272460077910001252109,02/04/2020,GLOUCESTER CITY COUNCIL
Gloucester City Council,23UE,Cemeteries,CC004,Equipment and Furniture,3001,30/03/2020,12/03/2020,WWW.IKEA.COM,PETERBOROUGH,,PE2 9ET,REDACTED,556*********3063,5712,"FURNITURE, HOME FURNISHINGS AND EQUIPMENT STORES",-1193.5,Pound Sterling (826),1.000000000,-1193.5,Credit,85481470087222532609872,02/04/2020,GLOUCESTER CITY COUNCIL
Gloucester City Council,23UE,Business Transformation,BI006,Equipment and Furniture,3001,01/04/2020,31/03/2020,AMZNMKTPLACE AMAZON.CO,AMAZON.CO.UK,GBR,EC2A 2FA,REDACTED,556*********3063,5999,MISCELLANEOUS AND RETAIL STORES,99.98,Pound Sterling (826),1.000000000,99.98,Debit,85389240091012594383001,02/04/2020,GLOUCESTER CITY COUNCIL
Gloucester City Council,23UE,Guildhall Bar and Caf�,GH005,Catering Provisions,3103,04/03/2020,03/03/2020,SAINSBURYS 0771,GLOUCESTER,GBR,GL1 2AG,REDACTED,556*********1585,5411,"GROCERY STORES, SUPERMARKETS",19.8,Pound Sterling (826),1.000000000,19.8,Debit,25425150064040196412445,02/04/2020,GLOUCESTER CITY COUNCIL
Gloucester City Council,23UE,Guildhall Bar and Caf�,GH005,Catering Provisions,3103,04/03/2020,03/03/2020,ICELAND,GLOUCESTER,GBR,GL1 1SA,REDACTED,556*********1585,5411,"GROCERY STORES, SUPERMARKETS",6.4,Pound Sterling (826),1.000000000,6.4,Debit,25377750064040145586724,02/04/2020,GLOUCESTER CITY COUNCIL
Gloucester City Council,23UE,Guildhall Bar and Caf�,GH005,Catering Provisions,3103,05/03/2020,04/03/2020,ICELAND,GLOUCESTER,GBR,GL1 1SA,REDACTED,556*********1585,5411,"GROCERY STORES, SUPERMARKETS",3.5,Pound Sterling (826),1.000000000,3.5,Debit,25377750065050143826013,02/04/2020,GLOUCESTER CITY COUNCIL
Gloucester City Council,23UE,Guildhall Bar and Caf�,GH005,Catering Provisions,3103,11/03/2020,10/03/2020,ICELAND,GLOUCESTER,GBR,GL1 1SA,REDACTED,556*********1585,5411,"GROCERY STORES, SUPERMARKETS",5.6,Pound Sterling (826),1.000000000,5.6,Debit,25377750071090151690648,02/04/2020,GLOUCESTER CITY COUNCIL
Gloucester City Council,23UE,Guildhall Bar and Caf�,GH005,Catering Provisions,3103,12/03/2020,11/03/2020,ICELAND,GLOUCESTER,GBR,GL1 1SA,REDACTED,556*********1585,5411,"GROCERY STORES, SUPERMARKETS",5,Pound Sterling (826),1.000000000,5,Debit,25377750072000137913096,02/04/2020,GLOUCESTER CITY COUNCIL
Gloucester City Council,23UE,Guildhall Bar and Caf�,GH005,Catering Provisions,3103,16/03/2020,13/03/2020,LIDL GB GLOUCESTER,GLOUCESTER,GBR,GL4 4LP,REDACTED,556*********1585,5411,"GROCERY STORES, SUPERMARKETS",14.83,Pound Sterling (826),1.000000000,14.83,Debit,25377750074020186226982,02/04/2020,GLOUCESTER CITY COUNCIL
Gloucester City Council,23UE,Guildhall Bar and Caf�,GH005,Catering Provisions,3103,16/03/2020,13/03/2020,LIDL GB GLOUCESTER,GLOUCESTER,GBR,GL4 4LP,REDACTED,556*********1585,5411,"GROCERY STORES, SUPERMARKETS",0.69,Pound Sterling (826),1.000000000,0.69,Debit,25377750074020186227022,02/04/2020,GLOUCESTER CITY COUNCIL
Gloucester City Council,23UE,Guildhall Bar and Caf�,GH005,Catering Provisions,3103,17/03/2020,16/03/2020,ICELAND,GLOUCESTER,GBR,GL1 1SA,REDACTED,556*********1585,5411,"GROCERY STORES, SUPERMARKETS",10.6,Pound Sterling (826),1.000000000,10.6,Debit,25377750077030150024450,02/04/2020,GLOUCESTER CITY COUNCIL
